bitfinex/quotes_BTCUSD_20220226
["timestamp","ask_amount","ask_price","bid_price","bid_amount"]
[1645890310888,1.202728,39285.0,39283.0,0.19398738]
[1645890311086,0.31017,39284.0,39283.0,0.19398738]
[1645890311290,0.670404,39284.0,39283.0,0.19433537]
[1645890311634,0.720404,39284.0,39283.0,0.19433537]
[1645890311838,1.499204,39284.0,39283.0,0.19433537]
[1645890312038,0.420404,39284.0,39283.0,0.19433537]
[1645890312342,0.370404,39284.0,39283.0,0.19356984]
[1645890312636,0.360234,39284.0,39283.0,0.19356984]
[1645890313238,0.002,39286.0,39283.0,0.19356984]
[1645890313842,0.360234,39285.0,39283.0,0.19356984]
[1645890314237,0.003,39286.0,39284.0,0.19084888]
[1645890314441,0.360234,39285.0,39284.0,0.19084888]
[1645890315238,0.360234,39285.0,39284.0,0.19049888]
[1645890316092,0.361234,39285.0,39284.0,0.19049888]
[1645890316292,0.661234,39285.0,39284.0,0.19049888]
[1645890316497,1.43769656,39285.0,39284.0,0.19049888]
[1645890316693,1.140034,39285.0,39284.0,0.19049888]
[1645890316894,1.150204,39285.0,39284.0,0.19049888]
[1645890317094,1.140034,39285.0,39284.0,0.19049888]
[1645890317395,0.360234,39285.0,39284.0,0.18549888]
[1645890317895,0.710234,39285.0,39284.0,0.18549888]
[1645890318095,0.710234,39285.0,39283.0,0.19391783]
[1645890318096,2.339034,39284.0,39283.0,0.14573558]
[1645890318296,0.48763254,39282.0,39270.0,0.04]
[1645890318497,0.48763254,39282.0,39271.0,0.01]
[1645890318701,0.7788,39279.0,39277.0,0.00139218]
[1645890318905,0.7788,39276.0,39262.0,0.05]
[1645890319146,0.7788,39276.0,39258.0,0.2134]
[1645890319147,0.705234,39275.0,39258.0,0.0999]
[1645890319342,0.755234,39275.0,39258.0,0.0999]
[1645890319541,0.755234,39275.0,39257.0,0.21408646]
[1645890319742,0.790934,39275.0,39256.0,0.21408646]
[1645890319943,0.063714,39274.0,39256.0,0.21408646]
[1645890320145,0.1683427,39270.0,39256.0,0.21408646]
[1645890320343,0.1683427,39270.0,39251.0,0.62010339]
[1645890320344,0.3,39269.0,39255.0,0.21408646]
[1645890320544,0.3,39269.0,39253.0,0.21408646]
[1645890320742,0.3,39269.0,39254.0,0.21408646]
[1645890321044,0.01017,39274.0,39260.0,0.00037127]
[1645890321550,0.1999,39277.0,39261.0,0.403204]
[1645890321749,0.50017109,39279.0,39270.0,0.16926678]
[1645890321750,0.00037109,39279.0,39270.0,0.16926678]
[1645890321943,0.00037109,39279.0,39271.0,0.677674]
[1645890322143,0.1842,39280.0,39271.0,0.3]
[1645890322342,0.00037112,39279.0,39270.0,0.16926678]
[1645890322543,0.355151,39277.0,39267.0,0.00037123]
[1645890322888,0.655151,39277.0,39267.0,0.00037123]
[1645890323088,0.1365,39282.0,39268.0,0.428774]
[1645890323287,0.1365,39282.0,39270.0,0.37804522]
[1645890323483,0.00037113,39279.0,39271.0,0.07663]
[1645890323689,0.00037113,39279.0,39272.0,0.677674]
[1645890323885,0.00037113,39279.0,39274.0,0.377674]
[1645890324087,0.00037113,39279.0,39274.0,0.677674]
[1645890324391,0.002,39286.0,39274.0,0.377674]
[1645890324588,0.00037115,39279.0,39275.0,0.30037119]
[1645890324786,0.00037115,39279.0,39276.0,0.377674]
[1645890325587,0.002,39286.0,39276.0,0.428774]
[1645890325788,0.00037115,39279.0,39277.0,0.3]
[1645890325990,0.00037115,39279.0,39276.0,0.0511]
[1645890326848,0.002,39286.0,39277.0,0.377674]
[1645890327058,0.00015523,39279.0,39276.0,0.0511]
[1645890327448,0.00015523,39279.0,39277.0,0.377674]
[1645890327648,0.00015523,39279.0,39276.0,0.0511]
[1645890328048,0.002,39286.0,39276.0,0.0511]
[1645890328249,0.00015523,39279.0,39273.0,0.23032527]
[1645890328449,0.00015523,39279.0,39274.0,0.377674]
[1645890329249,0.002,39286.0,39274.0,0.3]
[1645890329449,0.00037064,39279.0,39275.0,0.00037068]
[1645890329653,0.00037064,39279.0,39276.0,0.379674]
[1645890330495,0.002,39286.0,39280.0,0.23865799]
[1645890331896,0.00037033,39285.0,39280.0,0.24065799]
[1645890332795,0.002,39286.0,39280.0,0.24065799]
[1645890332996,0.002,39286.0,39280.0,0.002]
[1645890333195,0.00037033,39284.0,39275.0,0.00037042]
[1645890333397,0.00037033,39284.0,39276.0,0.377674]
[1645890333697,0.00037033,39284.0,39277.0,0.3]
[1645890333898,0.00037033,39284.0,39276.0,0.004]
[1645890334140,0.002,39286.0,39277.0,0.02553]
[1645890334343,0.00037062,39282.0,39278.0,0.454304]
[1645890334548,0.00037062,39282.0,39281.0,0.403204]
[1645890334742,0.00037062,39282.0,39281.0,0.754304]
[1645890335140,0.002,39286.0,39281.0,0.754304]
[1645890335340,0.002,39286.0,39281.0,0.93670826]
[1645890335539,0.002,39286.0,39281.0,0.91117826]
[1645890335742,0.00037061,39283.0,39281.0,0.91117826]
[1645890335941,0.00037061,39283.0,39282.0,0.677674]
[1645890336141,0.00037061,39283.0,39282.0,0.728774]
[1645890336442,0.002,39286.0,39282.0,0.728774]
[1645890336641,0.002,39286.0,39283.0,0.377674]
[1645890336642,0.00037061,39284.0,39283.0,0.377674]
[1645890336841,0.00037061,39284.0,39283.0,0.728774]
[1645890337641,0.002,39286.0,39283.0,0.728774]
[1645890337891,0.0003706,39285.0,39283.0,0.730774]
[1645890338095,0.0003706,39285.0,39284.0,0.677674]
[1645890338291,0.0003706,39285.0,39284.0,0.728774]
[1645890338694,0.0003706,39285.0,39284.0,0.754304]
[1645890338997,3.655e-05,39292.0,39287.0,0.377674]
[1645890339198,3.655e-05,39292.0,39289.0,0.377674]
[1645890339396,3.655e-05,39292.0,39291.0,1.182004]
[1645890339596,3.655e-05,39292.0,39291.0,1.74320137]
[1645890340098,3.655e-05,39292.0,39291.0,0.428774]
[1645890340697,3.655e-05,39292.0,39291.0,0.0511]
[1645890340896,3.655e-05,39292.0,39291.0,0.428576]
[1645890341941,3.655e-05,39292.0,39291.0,0.432576]
[1645890342136,3.655e-05,39292.0,39291.0,0.732576]
[1645890343137,3.655e-05,39292.0,39291.0,0.728576]
[1645890344140,3.655e-05,39292.0,39291.0,0.72865099]
[1645890344338,3.655e-05,39292.0,39291.0,0.42865099]
[1645890345792,3.655e-05,39292.0,39291.0,0.42819629]
[1645890346793,3.655e-05,39292.0,39291.0,0.05072029]
[1645890346993,3.655e-05,39292.0,39291.0,0.42819629]
[1645890348398,3.655e-05,39292.0,39291.0,0.377476]
[1645890349237,3.655e-05,39292.0,39291.0,7.499e-05]
[1645890350037,3.655e-05,39292.0,39291.0,0.38055099]
[1645890350840,0.29462959,39303.0,39292.0,0.55]
[1645890351039,0.01017,39303.0,39293.0,0.0511]
[1645890351237,0.01017,39303.0,39291.0,0.00307499]
[1645890351238,0.00015521,39293.0,39291.0,0.00307499]
[1645890351440,0.00015521,39293.0,39292.0,0.428576]
[1645890352039,0.00015521,39293.0,39292.0,0.430576]
[1645890352239,0.04,39304.0,39292.0,0.0531]
[1645890353287,0.04,39304.0,39292.0,0.0511]
[1645890353486,0.04,39304.0,39296.0,0.21486289]
[1645890353688,0.01016,39303.0,39297.0,0.0511]
[1645890354689,0.04,39304.0,39297.0,0.0511]
[1645890354890,0.00037077,39302.0,39298.0,0.377476]
[1645890355089,0.00037077,39302.0,39298.0,0.428576]
[1645890355706,0.04,39304.0,39298.0,0.428576]
[1645890355891,0.04,39304.0,39300.0,0.377476]
[1645890356192,0.04,39304.0,39302.0,0.377476]
[1645890356494,0.04,39304.0,39303.0,0.3511]
[1645890356767,0.04,39304.0,39303.0,0.754106]
[1645890356964,0.04,39304.0,39303.0,0.454106]
[1645890357264,0.00037075,39305.0,39304.0,1.2]
[1645890357459,0.00037075,39305.0,39304.0,1.628576]
[1645890357861,0.00037075,39305.0,39304.0,0.428576]
[1645890358059,0.00037075,39305.0,39304.0,0.855801]
[1645890358264,0.01,39319.0,39310.0,0.20089642]
[1645890358460,0.01,39319.0,39311.0,0.0511]
[1645890358660,0.01,39319.0,39312.0,0.0511]
[1645890359760,0.00037096,39317.0,39312.0,0.0511]
[1645890359961,0.00037096,39317.0,39312.0,0.0531]
[1645890360696,0.01,39319.0,39312.0,0.0531]
[1645890360895,0.01,39319.0,39313.0,0.677476]
[1645890360896,0.00037096,39316.0,39313.0,0.677476]
[1645890361091,0.00037096,39316.0,39314.0,0.0511]
[1645890361891,0.00829584,39319.0,39314.0,0.0511]
[1645890362093,0.00037096,39317.0,39314.0,0.0521]
[1645890362492,0.00027499,39313.0,39303.0,0.32553]
[1645890362692,0.00027499,39313.0,39304.0,0.428576]
[1645890362894,0.00027499,39313.0,39306.0,0.377476]
[1645890363094,0.00027499,39313.0,39308.0,0.377476]
[1645890363294,0.00027499,39313.0,39309.0,0.728576]
[1645890363295,0.000371,39310.0,39309.0,0.728576]
[1645890363497,0.000371,39310.0,39309.0,0.95247449]
[1645890364144,0.00027499,39313.0,39309.0,0.95447449]
[1645890364444,0.00027499,39313.0,39310.0,0.377476]
[1645890364445,0.00015495,39311.0,39310.0,0.377476]
[1645890364648,0.00015495,39311.0,39310.0,0.7281234]
[1645890364843,0.00015495,39311.0,39310.0,0.4281234]
[1645890365344,0.00027499,39313.0,39310.0,0.4281234]
[1645890365544,0.00027499,39313.0,39310.0,0.7281234]
[1645890365743,0.00037126,39312.0,39310.0,0.4281234]
[1645890366148,0.00212544,39319.0,39312.0,0.9]
[1645890366346,0.00212544,39319.0,39313.0,0.677476]
[1645890366544,0.00212544,39319.0,39315.0,0.377332]
[1645890366945,0.00212544,39319.0,39317.0,0.377332]
[1645890367146,0.00212544,39319.0,39318.0,0.0511]
[1645890367347,0.00212544,39319.0,39318.0,0.428432]
[1645890368395,0.0011,39324.0,39319.0,0.95]
[1645890368597,0.0011,39324.0,39320.0,0.728432]
[1645890368798,0.0011,39324.0,39321.0,0.0511]
[1645890368995,0.0011,39324.0,39322.0,0.377332]
[1645890369194,0.0011,39324.0,39323.0,0.22047541]
[1645890369395,0.0011,39324.0,39323.0,0.59780741]
[1645890369996,0.0011,39324.0,39323.0,0.59980741]
[1645890370596,0.0011,39324.0,39313.0,0.29771021]
[1645890370799,0.0011,39324.0,39314.0,0.428386]
[1645890371637,0.00015451,39321.0,39318.0,0.1864016]
[1645890371840,0.00015451,39321.0,39319.0,0.0511]
[1645890372340,0.00015451,39321.0,39320.0,0.377286]
[1645890372539,0.0011,39324.0,39320.0,0.728386]
[1645890372939,0.00015451,39322.0,39320.0,0.428386]
[1645890373740,0.0011,39324.0,39320.0,0.428386]
[1645890374138,0.00037132,39323.0,39320.0,0.428386]
[1645890374539,0.00037132,39323.0,39320.0,0.0511]
[1645890375040,0.0011,39324.0,39320.0,0.0511]
[1645890375240,0.00037132,39323.0,39320.0,0.0511]
[1645890376091,0.08,39321.0,39320.0,0.002]
[1645890376289,0.557286,39321.0,39320.0,0.002]
[1645890376495,0.18,39321.0,39320.0,0.002]
[1645890376888,0.08,39321.0,39320.0,0.002]
[1645890377390,0.08,39321.0,39316.0,0.17541187]
[1645890377590,0.08,39321.0,39311.0,0.02553]
[1645890377791,0.08,39321.0,39316.0,0.377286]
[1645890377991,0.08,39320.0,39316.0,0.379286]
[1645890378291,0.08,39320.0,39317.0,0.0511]
[1645890378691,0.08,39320.0,39316.0,0.002]
[1645890378892,0.08037133,39320.0,39316.0,0.002]
[1645890379144,0.08,39319.0,39316.0,0.002]
[1645890379541,0.08,39319.0,39311.0,0.19614529]
[1645890379740,0.08,39319.0,39312.0,0.377286]
[1645890379940,0.08,39319.0,39312.0,0.677286]
[1645890380140,0.00037135,39317.0,39312.0,0.677286]
[1645890380940,0.08,39323.0,39312.0,0.677286]
[1645890381143,0.08,39323.0,39317.0,0.2113471]
[1645890381542,0.08,39322.0,39317.0,0.2113471]
[1645890382144,0.08,39322.0,39317.0,0.2133471]
[1645890382540,0.00037133,39321.0,39317.0,0.002]
[1645890382742,0.08037133,39321.0,39317.0,0.002]
[1645890382998,0.29497973,39321.0,39317.0,0.00025979]
[1645890383399,0.2946084,39321.0,39317.0,0.00025979]
[1645890383800,0.08,39319.0,39317.0,0.00025979]
[1645890384000,0.08,39319.0,39316.0,0.0499]
[1645890385001,0.08037134,39319.0,39316.0,0.0499]
[1645890385902,0.08,39319.0,39316.0,0.0499]
[1645890386101,0.08,39319.0,39316.0,0.0519]
[1645890386102,0.08037134,39319.0,39316.0,0.0519]
[1645890387054,0.08,39317.0,39316.0,0.0519]
[1645890387250,0.557286,39317.0,39316.0,0.0519]
[1645890387447,0.557286,39317.0,39316.0,0.0499]
[1645890387448,0.83574766,39317.0,39316.0,0.0499]
[1645890387649,0.30478142,39317.0,39316.0,0.0499]
[1645890387846,0.09016,39317.0,39316.0,0.0499]
[1645890388047,0.30578635,39317.0,39316.0,0.0499]
[1645890388247,0.458286,39317.0,39316.0,0.0499]
[1645890388447,0.458286,39317.0,39316.0,0.0399]
[1645890389048,0.081,39317.0,39316.0,0.0399]
[1645890389448,0.08,39317.0,39316.0,0.0399]
[1645890389651,0.457286,39317.0,39316.0,0.0399]
[1645890389847,0.08,39317.0,39316.0,0.0399]
[1645890390047,0.082,39317.0,39316.0,0.0399]
[1645890391402,0.08,39317.0,39316.0,0.0399]
[1645890391600,0.457286,39317.0,39316.0,0.0399]
[1645890392207,0.460286,39317.0,39316.0,0.0399]
[1645890392603,0.72858766,39317.0,39316.0,0.0399]
[1645890392802,0.460286,39317.0,39316.0,0.0399]
[1645890393403,0.457286,39317.0,39316.0,0.0399]
[1645890394005,0.779248,39317.0,39316.0,0.0399]
[1645890394240,0.401962,39317.0,39316.0,0.0399]
[1645890394645,0.779248,39317.0,39316.0,0.0399]
[1645890395140,0.457286,39317.0,39316.0,0.0399]
[1645890395343,0.40210465,39317.0,39316.0,0.0399]
[1645890395745,0.40210465,39317.0,39305.0,0.05]
[1645890395746,0.08,39316.0,39305.0,0.05]
[1645890395946,0.08,39309.0,39295.0,0.00129515]
[1645890396145,0.08,39305.0,39295.0,0.00129515]
[1645890396744,0.08,39305.0,39294.0,0.21121798]
[1645890396944,0.08,39305.0,39295.0,0.3]
[1645890397145,0.08,39305.0,39292.0,0.30165054]
[1645890397349,0.29474979,39305.0,39292.0,0.30165054]
[1645890397546,0.08,39303.0,39292.0,0.30165054]
[1645890397996,0.08,39303.0,39292.0,0.3003301]
[1645890398196,0.08,39303.0,39293.0,0.21692728]
[1645890398995,0.08,39303.0,39293.0,0.21892728]
[1645890400197,0.08,39303.0,39293.0,0.21692728]
[1645890400596,0.08,39303.0,39293.0,0.11895628]
[1645890400799,0.08,39302.0,39293.0,0.11895628]
[1645890400999,0.08,39302.0,39293.0,0.12195628]
[1645890401196,0.08,39302.0,39293.0,0.003]
[1645890401398,0.08,39300.0,39293.0,0.003]
[1645890401681,0.08,39298.0,39293.0,0.003]
[1645890401880,0.08,39296.0,39293.0,0.003]
[1645890402081,0.08,39294.0,39293.0,0.003]
[1645890402279,0.457286,39294.0,39292.0,0.00032926]
[1645890402684,0.08,39293.0,39290.0,0.21900491]
[1645890402880,0.08,39293.0,39291.0,0.00032924]
[1645890403679,0.08,39292.0,39291.0,0.00032924]
[1645890403882,0.08,39292.0,39285.0,0.00042213]
[1645890404278,0.08,39292.0,39287.0,0.2002684]
[1645890404679,0.32553,39298.0,39287.0,0.2002684]
[1645890404680,0.08,39291.0,39287.0,0.2002684]
[1645890405286,0.08,39291.0,39287.0,0.20059778]
[1645890405695,0.08,39290.0,39287.0,0.20059778]
[1645890405899,0.08,39290.0,39287.0,0.00032938]
[1645890406395,0.08,39290.0,39285.0,0.00042213]
[1645890406597,0.08,39290.0,39287.0,0.00032938]
[1645890406799,0.08,39289.0,39287.0,0.00032938]
[1645890407599,0.08,39289.0,39285.0,0.00042213]
[1645890407803,0.08,39293.0,39286.0,0.00032938]
[1645890407999,0.1770224,39295.0,39286.0,0.00032938]
[1645890408000,0.08,39291.0,39286.0,0.00032938]
[1645890408199,0.1770224,39295.0,39286.0,0.00032938]
[1645890408200,0.08,39289.0,39286.0,0.00032938]
[1645890408799,0.0289,39291.0,39285.0,0.00042213]
[1645890408800,0.457286,39286.0,39285.0,0.00042213]
[1645890409002,0.757286,39286.0,39285.0,0.00042213]
[1645890410050,0.857286,39286.0,39285.0,0.00042213]
[1645890410248,0.867456,39286.0,39285.0,0.00042213]
[1645890410650,0.917456,39286.0,39285.0,0.00042213]
[1645890411049,0.918456,39286.0,39285.0,0.00042213]
[1645890411249,0.918456,39286.0,39285.0,2.13e-06]
[1645890411649,0.818456,39286.0,39285.0,2.13e-06]
[1645890411849,1.747256,39286.0,39285.0,2.13e-06]
[1645890412049,0.868456,39286.0,39285.0,2.13e-06]
[1645890412249,0.867456,39286.0,39285.0,2.13e-06]
[1645890413907,0.857286,39286.0,39285.0,2.13e-06]
[1645890415806,0.557286,39286.0,39285.0,2.13e-06]
[1645890417052,0.08,39286.0,39285.0,2.13e-06]
[1645890417251,0.08,39286.0,39285.0,0.1779799]
[1645890417657,0.3,39296.0,39285.0,0.1779799]
[1645890417658,0.21450825,39303.0,39287.0,2.00433]
[1645890417853,0.21450825,39308.0,39298.0,0.02553]
[1645890418056,0.21450825,39312.0,39300.0,0.80433]
[1645890418255,0.00034765,39314.0,39305.0,0.02553]
[1645890418256,0.21450825,39313.0,39305.0,0.02553]
[1645890418451,0.015,39317.0,39307.0,0.02553]
[1645890418652,0.015,39317.0,39309.0,0.02553]
[1645890418855,0.015,39317.0,39310.0,0.428386]
[1645890418856,0.00013246,39314.0,39310.0,0.428386]
[1645890419054,0.00013246,39314.0,39311.0,0.01016]
[1645890419251,0.00013246,39314.0,39311.0,0.0511]
[1645890419651,0.21858992,39313.0,39311.0,0.0511]
[1645890420506,0.21858992,39313.0,39303.0,0.0511]
[1645890420703,0.377286,39312.0,39303.0,0.0511]
[1645890420906,0.21858992,39313.0,39303.0,0.0511]
[1645890421103,0.377286,39312.0,39303.0,0.0511]
[1645890421303,0.20921369,39307.0,39298.0,0.0511]
[1645890421802,0.22242086,39314.0,39298.0,0.0511]
[1645890421803,0.00791261,39314.0,39299.0,0.3]
[1645890422002,0.007563,39314.0,39299.0,0.3]
[1645890422403,0.00791241,39314.0,39299.0,0.3]
[1645890422602,0.22737032,39306.0,39299.0,0.3]
[1645890422803,0.22737032,39306.0,39298.0,0.0511]
[1645890423001,0.22737032,39306.0,39299.0,0.377286]
[1645890423802,0.22737032,39306.0,39298.0,0.0511]
[1645890424552,0.377286,39305.0,39298.0,0.0511]
[1645890424750,0.22737032,39306.0,39298.0,0.0511]
[1645890424953,0.22737032,39306.0,39294.0,0.00139833]
[1645890425152,0.22837032,39306.0,39294.0,0.00139833]
[1645890425754,0.18119748,39300.0,39293.0,0.06126]
[1645890426553,0.18119748,39300.0,39294.0,0.377286]
[1645890426753,0.01016,39306.0,39293.0,0.01016]
[1645890427154,0.01016,39307.0,39294.0,0.377286]
[1645890427356,0.01016,39307.0,39293.0,0.01016]
[1645890428004,0.17206713,39305.0,39294.0,0.377286]
[1645890428199,0.17206713,39305.0,39293.0,0.01016]
[1645890428601,0.17206713,39305.0,39294.0,0.377286]
[1645890428805,0.17206713,39305.0,39295.0,0.3]
[1645890429100,0.17206713,39305.0,39293.0,0.01016]
[1645890430103,0.01016,39307.0,39295.0,0.18127086]
[1645890430303,0.01016,39307.0,39297.0,0.377286]
[1645890430505,0.163645,39321.0,39299.0,0.377286]
[1645890430506,0.01016,39311.0,39299.0,0.377286]
[1645890430704,0.01016,39313.0,39307.0,0.02210775]
[1645890430904,0.01050943,39314.0,39307.0,0.02210775]
[1645890431102,0.23354524,39311.0,39307.0,0.02210775]
[1645890432446,0.23354524,39311.0,39307.0,0.02169058]
[1645890432646,0.377286,39309.0,39307.0,0.02169058]
[1645890432848,0.01016,39310.0,39307.0,0.02169058]
[1645890433046,0.22466825,39310.0,39307.0,0.02169058]
[1645890433447,0.32466825,39310.0,39307.0,0.02169058]
[1645890433647,0.11016,39310.0,39307.0,0.02169058]
[1645890433853,0.06016,39310.0,39307.0,0.02169058]
[1645890434249,0.377286,39308.0,39307.0,0.02169058]
[1645890434450,0.90577,39309.0,39307.0,0.02169058]
[1645890434649,0.377286,39308.0,39307.0,0.02169058]
[1645890435050,0.90577,39309.0,39307.0,0.02169058]
[1645890435250,0.377286,39308.0,39307.0,0.02169058]
[1645890436302,0.05,39309.0,39307.0,0.02169058]
[1645890436808,0.06016,39310.0,39307.0,0.02169058]
[1645890437202,0.002,39309.0,39307.0,0.02169058]
[1645890437903,0.377286,39308.0,39307.0,0.02169058]
[1645890438402,0.06016,39310.0,39307.0,0.02169058]
[1645890439004,0.377286,39309.0,39307.0,0.02169058]
[1645890439255,0.377286,39308.0,39307.0,0.02169058]
[1645890440250,0.37662221,39308.0,39307.0,0.02169058]
[1645890440452,0.05,39309.0,39307.0,0.02169058]
[1645890440653,0.377351,39308.0,39307.0,0.02169058]
[1645890440855,1.156151,39308.0,39307.0,0.02169058]
[1645890441054,1.241941,39308.0,39307.0,0.02169058]
[1645890441353,1.66521193,39308.0,39307.0,0.02169058]
[1645890441955,1.423571,39308.0,39307.0,0.02169058]
[1645890442154,0.644771,39308.0,39307.0,0.02169058]
[1645890442353,1.337781,39308.0,39307.0,0.02169058]
[1645890442555,1.256151,39308.0,39307.0,0.02169058]
[1645890443000,0.477351,39308.0,39307.0,0.02169058]
[1645890444101,0.36836532,39308.0,39307.0,0.02169058]
[1645890444305,0.477351,39308.0,39307.0,0.02169058]
[1645890445501,0.36836532,39308.0,39307.0,0.02169058]
[1645890445702,0.05,39308.0,39307.0,0.02169058]
[1645890445902,0.26836532,39309.0,39307.0,0.02169058]
[1645890446102,0.31836532,39309.0,39307.0,0.02169058]
[1645890446302,0.377351,39308.0,39307.0,0.02169058]
[1645890446502,0.427351,39308.0,39307.0,0.02169058]
[1645890446769,0.477351,39308.0,39307.0,0.02169058]
[1645890446974,0.74571632,39308.0,39307.0,0.02169058]
[1645890447170,0.477351,39308.0,39307.0,0.02169058]
[1645890448672,0.74571632,39308.0,39307.0,0.02169058]
[1645890449075,0.36836532,39308.0,39307.0,0.02169058]
[1645890449577,0.74571632,39308.0,39307.0,0.02169058]
[1645890449774,0.36836532,39308.0,39307.0,0.02169058]
[1645890450418,0.31836757,39308.0,39307.0,0.02169058]
[1645890450615,0.74571857,39308.0,39307.0,0.02169058]
[1645890451218,0.80039208,39308.0,39307.0,0.02169058]
[1645890452017,0.79939208,39308.0,39307.0,0.02169058]
[1645890452415,0.477351,39308.0,39307.0,0.02169058]
[1645890453017,0.479351,39308.0,39307.0,0.02169058]
[1645890453418,1.258151,39308.0,39307.0,0.02169058]
[1645890453617,0.479351,39308.0,39307.0,0.02169058]
[1645890453818,0.80139208,39308.0,39307.0,0.02169058]
[1645890454019,0.479351,39308.0,39307.0,0.02169058]
[1645890454259,0.74573039,39308.0,39307.0,0.02169058]
[1645890454460,0.74573336,39308.0,39307.0,0.02169058]
[1645890455462,0.427351,39308.0,39307.0,0.02169058]
[1645890456961,0.429351,39308.0,39307.0,0.02169058]
[1645890457161,0.75139208,39308.0,39307.0,0.02169058]
[1645890457908,0.429351,39308.0,39307.0,0.02169058]
[1645890458105,0.74939208,39308.0,39307.0,0.02169058]
[1645890458607,0.427351,39308.0,39307.0,0.02169058]
[1645890458803,1.206151,39308.0,39307.0,0.02169058]
[1645890459004,0.8050656,39308.0,39307.0,0.02169058]
[1645890459203,0.429351,39308.0,39307.0,0.02169058]
[1645890459704,0.8050656,39308.0,39307.0,0.02169058]
[1645890459904,1.5838656,39308.0,39307.0,0.02169058]
[1645890460108,1.5818656,39308.0,39307.0,0.02169058]
[1645890460306,0.8030656,39308.0,39307.0,0.02169058]
[1645890460707,0.5750635,39308.0,39307.0,0.02169058]
[1645890460908,0.5250635,39308.0,39307.0,0.02169058]
[1645890461108,0.75341922,39308.0,39307.0,0.02169058]
[1645890461789,0.52359941,39308.0,39307.0,0.02162645]
[1645890469557,0.53156981,39308.0,39307.0,0.02162645]
[1645890471059,0.53356981,39308.0,39307.0,0.02162645]
[1645890472263,0.53156981,39308.0,39307.0,0.02162645]
[1645890481008,0.53356981,39308.0,39307.0,0.02162645]
[1645890481609,0.83356981,39308.0,39307.0,0.02162645]
[1645890482107,0.83356981,39308.0,39307.0,0.02155611]
[1645890482306,0.83156981,39308.0,39307.0,0.02155611]
[1645890483107,0.83356981,39308.0,39307.0,0.02155611]
[1645890484154,0.88356981,39308.0,39307.0,0.02155611]
[1645890484353,0.88156981,39308.0,39307.0,0.02155611]
[1645890484953,0.88356981,39308.0,39307.0,0.02155611]
[1645890485154,0.88016056,39308.0,39307.0,0.02155611]
[1645890485555,0.93016056,39308.0,39307.0,0.02155611]
[1645890486356,0.92816056,39308.0,39307.0,0.00955611]
[1645890486663,1.70696056,39308.0,39307.0,0.00955611]
[1645890487157,1.81812056,39308.0,39307.0,0.00955611]
[1645890487356,1.91515294,39308.0,39307.0,0.00955611]
[1645890488306,1.81415294,39308.0,39307.0,0.00955611]
[1645890489110,1.83653894,39308.0,39307.0,0.00955611]
[1645890489310,1.81615294,39308.0,39307.0,0.00955611]
[1645890489507,1.80599294,39308.0,39307.0,0.00955611]
[1645890489710,0.93060219,39308.0,39307.0,0.00955611]
[1645890490308,0.92860219,39308.0,39307.0,0.00955611]
[1645890490510,1.70740219,39308.0,39307.0,0.00955611]
[1645890491411,0.72860219,39308.0,39307.0,0.00955611]
[1645890491669,0.35125119,39308.0,39307.0,0.00955611]
[1645890491871,0.25421881,39308.0,39307.0,0.00955611]
[1645890492068,0.15421881,39308.0,39307.0,0.00955611]
[1645890492269,0.15421881,39308.0,39307.0,0.00913913]
[1645890493467,0.37624093,39308.0,39307.0,0.00913913]
[1645890493767,0.1046871,39308.0,39307.0,0.00913913]
[1645890493970,0.1046871,39310.0,39307.0,0.00913913]
[1645890494168,0.130091,39313.0,39307.0,0.00913913]
[1645890494169,0.37623411,39309.0,39307.0,0.00913913]
[1645890494869,0.32245959,39308.0,39307.0,0.00913913]
[1645890495070,0.37623411,39309.0,39307.0,0.00913913]
[1645890495268,0.19276401,39312.0,39307.0,0.00913913]
[1645890495269,0.37623411,39310.0,39307.0,0.00913913]
[1645890495516,0.32245882,39308.0,39307.0,0.00913913]
[1645890497119,0.32345882,39308.0,39307.0,0.00913913]
[1645890497520,0.001,39308.0,39307.0,0.00913913]
[1645890498322,0.32245882,39309.0,39307.0,0.00913913]
[1645890499158,0.32345882,39309.0,39307.0,0.00913913]
[1645890500059,0.32245882,39308.0,39307.0,0.00913913]
[1645890501062,0.32345882,39308.0,39307.0,0.00913913]
[1645890502465,0.32245882,39309.0,39307.0,0.00913913]
[1645890505214,0.32345882,39309.0,39307.0,0.00913913]
[1645890506415,0.32345882,39309.0,39301.0,0.29790913]
[1645890506660,0.32345882,39309.0,39301.0,0.677351]
[1645890506860,0.37623411,39311.0,39310.0,0.67754118]
[1645890507061,0.75358511,39311.0,39310.0,0.67754118]
[1645890507562,0.37623411,39312.0,39310.0,0.67754118]
[1645890507862,0.60604318,39313.0,39310.0,0.67754118]
[1645890508061,0.60604318,39313.0,39311.0,0.3]
[1645890508062,0.37623411,39313.0,39311.0,0.3]
[1645890508263,0.00015342,39314.0,39311.0,0.728451]
[1645890508662,0.37623411,39318.0,39311.0,0.728451]
[1645890508862,0.00015343,39314.0,39311.0,0.728451]
[1645890509061,0.00115343,39314.0,39311.0,0.728451]
[1645890509461,0.00024433,39314.0,39311.0,0.728451]
[1645890510513,0.37623411,39320.0,39311.0,0.728451]
[1645890510717,0.38639411,39323.0,39315.0,0.1]
[1645890510917,0.37733411,39324.0,39316.0,0.728451]
[1645890511115,0.37733411,39324.0,39317.0,0.0511]
[1645890511316,0.00015343,39321.0,39318.0,0.3]
[1645890511514,0.00015343,39321.0,39319.0,0.377351]
[1645890512313,0.00015343,39321.0,39318.0,0.3]
[1645890512314,0.0011,39324.0,39318.0,0.3]
[1645890512517,0.00015343,39322.0,39319.0,0.377351]
[1645890512714,0.00015343,39322.0,39320.0,0.3]
[1645890513115,0.00015343,39322.0,39319.0,0.001]
[1645890513518,0.37733411,39324.0,39319.0,0.001]
[1645890513717,0.00036988,39322.0,39319.0,0.001]
[1645890514169,0.21943053,39320.0,39319.0,0.001]
[1645890516364,0.00015331,39321.0,39319.0,0.001]
[1645890516569,0.00015331,39321.0,39320.0,0.1511]
[1645890516765,0.0011,39324.0,39321.0,0.75030661]
[1645890516964,0.0011,39324.0,39322.0,0.728451]
[1645890517164,0.0011,39324.0,39323.0,0.3]